[Event "Test Tournament"]
[Site "Emanuel Lasker Arena"]
[Date "2024.04.09"]
[Round "2"]
[White "Local Hero"]
[Black "Schachmatz"]
[Result "1-0"]
[WhiteElo "1983"]
[BlackElo "1620"]
[Annotator "RC"]
[PlyCount "91"]
[EventDate "2024.04.09"]
[EventType "swiss (blitz)"]
[TimeControl "60"]

1. d4 {[%emt 0:00:01]} f5 {[%emt 0:00:01]} 2. g3 {[%emt 0:00:01]} Nf6 {[%emt 0:00:01]} 3. Bg2 {[%emt 0:00:01]} g6 {[%emt 0:00:01]} 4. Nf3 {[%emt 0:00:01]} Bg7 {[%emt 0:00:01]} 5. O-O {[%emt 0:00:01]} O-O {[%emt 0:00:02]} 6. c4 {[%emt 0:00:01]} Ne4 {[%emt 0:00:01]} 7. Nbd2 {[%emt 0:00:04]} Nc6 {[%emt 0:00:04]} 8. d5 {[%emt 0:00:02]} Nb4 {[%emt 0:00:01]} 9. Qb3 {[%emt 0:00:02]} c5 {[%emt 0:00:05]} 10. a3 {[%emt 0:00:04]} Nxd5 {[%emt 0:00:04]} 11. cxd5 {[%emt 0:00:01]} h5 {[%emt 0:00:03]} 12. d6+ {[%emt 0:00:03]} e6 {[%emt 0:00:03]} 13. Nxe4 {[%emt 0:00:01]} fxe4 {[%emt 0:00:01]} 14. Bg5 {[%emt 0:00:03]} Rxf3 {[%emt 0:00:01]} 15. Bxf3 {[%emt 0:00:01]} Qxg5 {[%emt 0:00:01]} 16. Bxe4 {[%emt 0:00:01]} Qe5 {[%emt 0:00:03]} 17. Bxb7 {[%emt 0:00:03]} Rb8 {[%emt 0:00:03]} 18. Qd3 {[%emt 0:00:03]} Bxb7 {[%emt 0:00:01]} 19. Qxg6 {[%emt 0:00:01]} h4 {[%emt 0:00:02]} 20. b4 {[%emt 0:00:03]} hxg3 {[%emt 0:00:02]} 21. hxg3 {[%emt 0:00:01]} Qe4 {[%emt 0:00:02]} 22. Qxe4 {[%emt 0:00:01]} Bxe4 {[%emt 0:00:01]} 23. Rac1 {[%emt 0:00:02]} cxb4 {[%emt 0:00:01]} 24. axb4 {[%emt 0:00:01]} Rxb4 {[%emt 0:00:01]} 25. Rc7 {[%emt 0:00:01]} a5 {[%emt 0:00:01]} 26. Rxd7 {[%emt 0:00:01]} Bd4 {[%emt 0:00:01]} 27. Rd1 {[%emt 0:00:01]} Bc2 {[%emt 0:00:01]} 28. Rd2 {[%emt 0:00:01]} Be4 {[%emt 0:00:01]} 29. Rd8+ {[%emt 0:00:01]} Kf7 {[%emt 0:00:01]} 30. Rd7+ {[%emt 0:00:01]} Kf8 {[%emt 0:00:01]} 31. Rd8+ {[%emt 0:00:01]} Kg7 {[%emt 0:00:01]} 32. Rd7+ {[%emt 0:00:01]} Kf6 {[%emt 0:00:01]} 33. Ra2 {[%emt 0:00:01]} Rb1+ {[%emt 0:00:01]} 34. Kh2 {[%emt 0:00:01]} Rg1 {[%emt 0:00:01]} 35. Kxg1 {[%emt 0:00:01]} Bc6 {[%emt 0:00:01]} 36. Rc7 {[%emt 0:00:01]} Bd5 {[%emt 0:00:01]} 37. Rxa5 {[%emt 0:00:01]} Bb6 {[%emt 0:00:01]} 38. Ra6 {[%emt 0:00:01]} Bxc7 {[%emt 0:00:01]} 39. dxc7 {[%emt 0:00:00]} Ba8 {[%emt 0:00:00]} 40. c8=Q {[%emt 0:00:01]} Be4 {[%emt 0:00:01]} 41. Qxe6+ {[%emt 0:00:01]} Kg5 {[%emt 0:00:01]} 42. Qxe4 {[%emt 0:00:01]} Kh5 {[%emt 0:00:01]} 43. Kf1 {[%emt 0:00:01]} Kg5 {[%emt 0:00:00]} 44. f4+ {[%emt 0:00:01]} Kg4 {[%emt 0:00:00]} 45. Rh6 {[%emt 0:00:00]} Kxg3 {[%emt 0:00:00] '} 46. Rh7 {[%emt 0:00:01] (Lag: Av=0.06s, max=0.3s)} 1-0

[Event "Test Tournament"]
[Site "Emanuel Lasker Arena"]
[Date "2024.04.09"]
[Round "2"]
[White "RCFlyer"]
[Black "MikhailBerg"]
[Result "0-1"]
[WhiteElo "1980"]
[BlackElo "2094"]
[Annotator "RC"]
[PlyCount "108"]
[EventDate "2024.04.09"]
[EventType "swiss (blitz)"]
[TimeControl "60"]

1. e4 {[%emt 0:00:01]} e5 {[%emt 0:00:01]} 2. Nf3 {[%emt 0:00:00]} Nc6 {[%emt 0:00:01]} 3. Bb5 {[%emt 0:00:01]} a6 {[%emt 0:00:01]} 4. Ba4 {[%emt 0:00:00]} Nf6 {[%emt 0:00:01]} 5. O-O {[%emt 0:00:01]} Be7 {[%emt 0:00:01]} 6. Re1 {[%emt 0:00:01]} b5 {[%emt 0:00:01]} 7. Bb3 {[%emt 0:00:00]} d6 {[%emt 0:00:01]} 8. c3 {[%emt 0:00:01]} O-O {[%emt 0:00:01]} 9. d4 {[%emt 0:00:01]} Bg4 {[%emt 0:00:01]} 10. Be3 {[%emt 0:00:01]} exd4 {[%emt 0:00:01]} 11. cxd4 {[%emt 0:00:01]} Na5 {[%emt 0:00:01]} 12. Bc2 {[%emt 0:00:01]} c5 {[%emt 0:00:01]} 13. h3 {[%emt 0:00:01]} Bh5 {[%emt 0:00:01]} 14. g4 {[%emt 0:00:04]} Bg6 {[%emt 0:00:01]} 15. Nbd2 {[%emt 0:00:01]} Nd7 {[%emt 0:00:01]} 16. d5 {[%emt 0:00:01]} Bf6 {[%emt 0:00:04]} 17. a4 {[%emt 0:00:02]} Bxb2 {[%emt 0:00:01]} 18. Ra2 {[%emt 0:00:03]} Qf6 {[%emt 0:00:03]} 19. Qb1 {[%emt 0:00:02]} Bc3 {[%emt 0:00:04]} 20. Bg5 {[%emt 0:00:00]} Nc4 {[%emt 0:00:03]} 21. Bxf6 {[%emt 0:00:01]} Bxd2 {[%emt 0:00:01]} 22. axb5 {[%emt 0:00:03]} axb5 {[%emt 0:00:01]} 23. Qxb5 {[%emt 0:00:01]} Rxa2 {[%emt 0:00:01]} 24. Qxc4 {[%emt 0:00:01]} Rxc2 {[%emt 0:00:02]} 25. Qxc2 {[%emt 0:00:00]} Bxe1 {[%emt 0:00:01]} 26. Be7 {[%emt 0:00:03]} Re8 {[%emt 0:00:01]} 27. Bxd6 {[%emt 0:00:01]} Bxe4 {[%emt 0:00:01]} 28. Qa4 {[%emt 0:00:03]} Bxf3 {[%emt 0:00:02]} 29. Qxd7 {[%emt 0:00:01]} Ra8 {[%emt 0:00:01]} 30. Qb7 {[%emt 0:00:02]} Rf8 {[%emt 0:00:02]} 31. Bxf8 {[%emt 0:00:01]} Kxf8 {[%emt 0:00:01]} 32. Qa8+ {[%emt 0:00:02]} Ke7 {[%emt 0:00:00]} 33. d6+ {[%emt 0:00:01]} Kxd6 {[%emt 0:00:00]} 34. Qe4 {[%emt 0:00:01]} Bxe4 {[%emt 0:00:01]} 35. Kf1 {[%emt 0:00:01]} Bd2 {[%emt 0:00:02]} 36. Ke2 {[%emt 0:00:01]} Bg5 {[%emt 0:00:01]} 37. f3 {[%emt 0:00:01]} Bd5 {[%emt 0:00:01]} 38. Kd3 {[%emt 0:00:01]} h5 {[%emt 0:00:01]} 39. f4 {[%emt 0:00:01]} Bf6 {[%emt 0:00:01]} 40. gxh5 {[%emt 0:00:01]} Bd4 {[%emt 0:00:01]} 41. f5 {[%emt 0:00:01]} Bf3 {[%emt 0:00:01]} 42. h6 {[%emt 0:00:01]} gxh6 {[%emt 0:00:01]} 43. f6 {[%emt 0:00:01]} Ke5 {[%emt 0:00:01]} 44. Kc4 {[%emt 0:00:01]} Be4 {[%emt 0:00:01]} 45. h4 {[%emt 0:00:01]} Kxf6 {[%emt 0:00:00]} 46. h5 {[%emt 0:00:01]} Kg5 {[%emt 0:00:01]} 47. Kb5 {[%emt 0:00:01]} Kxh5 {[%emt 0:00:00]} 48. Kc4 {[%emt 0:00:01]} f5 {[%emt 0:00:01]} 49. Kb5 {[%emt 0:00:01]} f4 {[%emt 0:00:01]} 50. Kc4 {[%emt 0:00:00]} f3 {[%emt 0:00:01]} 51. Kb3 {[%emt 0:00:00]} f2 {[%emt 0:00:00]} 52. Kc4 {[%emt 0:00:00]} f1=Q+ {[%emt 0:00:01]} 53. Kb3 {[%emt 0:00:00]} Qa1 {[%emt 0:00:00]} 54. Kc4 {[%emt 0:00:00]} Qa4# {[%emt 0:00:00] (Lag: Av=0.06s, max=0.5s)} 0-1

[Event "Test Tournament"]
[Site "Emanuel Lasker Arena"]
[Date "2024.04.09"]
[Round "2"]
[White "Myopix"]
[Black "Einpassant"]
[Result "0-1"]
[WhiteElo "1965"]
[BlackElo "1620"]
[Annotator "RC"]
[PlyCount "80"]
[EventDate "2024.04.09"]
[EventType "swiss (blitz)"]
[TimeControl "60"]

1. e4 {[%emt 0:00:02]} e5 {[%emt 0:00:01]} 2. Nf3 {[%emt 0:00:01]} Nc6 {[%emt 0:00:01]} 3. Bb5 {[%emt 0:00:01]} a6 {[%emt 0:00:01]} 4. Ba4 {[%emt 0:00:01]} Nf6 {[%emt 0:00:01]} 5. O-O {[%emt 0:00:01]} Be7 {[%emt 0:00:01]} 6. Qe2 {[%emt 0:00:01]} b5 {[%emt 0:00:01]} 7. Bb3 {[%emt 0:00:01]} O-O {[%emt 0:00:01]} 8. c3 {[%emt 0:00:01]} d5 {[%emt 0:00:01]} 9. d4 {[%emt 0:00:01]} Nxe4 {[%emt 0:00:01]} 10. dxe5 {[%emt 0:00:01]} Bc5 {[%emt 0:00:02]} 11. Bf4 {[%emt 0:00:01]} b4 {[%emt 0:00:02]} 12. Ba4 {[%emt 0:00:04]} Bd7 {[%emt 0:00:04]} 13. h4 {[%emt 0:00:04]} Re8 {[%emt 0:00:04]} 14. Bg5 {[%emt 0:00:03]} Ng3 {[%emt 0:00:03]} 15. Qd3 {[%emt 0:00:03]} Bf5 {[%emt 0:00:05]} 16. Bxd8 {[%emt 0:00:01]} Bxd3 {[%emt 0:00:01]} 17. Bxc6 {[%emt 0:00:02]} Raxd8 {[%emt 0:00:01]} 18. Bxe8 {[%emt 0:00:01]} Ne2+ {[%emt 0:00:01]} 19. Kh2 {[%emt 0:00:01]} Rxe8 {[%emt 0:00:01]} 20. h5 {[%emt 0:00:03]} h6 {[%emt 0:00:02]} 21. cxb4 {[%emt 0:00:01]} Bxb4 {[%emt 0:00:01]} 22. Rd1 {[%emt 0:00:03]} Be4 {[%emt 0:00:02]} 23. Nd4 {[%emt 0:00:02]} Nf4 {[%emt 0:00:02]} 24. Nc3 {[%emt 0:00:03]} Bxg2 {[%emt 0:00:01]} 25. Nc6 {[%emt 0:00:03]} Bc5 {[%emt 0:00:02]} 26. Ne2 {[%emt 0:00:03]} Nxe2 {[%emt 0:00:01]} 27. Kxg2 {[%emt 0:00:00]} Re6 {[%emt 0:00:03]} 28. Rd2 {[%emt 0:00:01]} Nf4+ {[%emt 0:00:02]} 29. Kf3 {[%emt 0:00:01]} Nxh5 {[%emt 0:00:01]} 30. Kg4 {[%emt 0:00:01]} g6 {[%emt 0:00:02]} 31. Nb8 {[%emt 0:00:01]} Rxe5 {[%emt 0:00:01]} 32. Nxa6 {[%emt 0:00:00]} Nf6+ {[%emt 0:00:01]} 33. Kf3 {[%emt 0:00:01]} Ne4 {[%emt 0:00:01]} 34. Rd3 {[%emt 0:00:01]} Rf5+ {[%emt 0:00:01]} 35. Kg2 {[%emt 0:00:01]} Rxf2+ {[%emt 0:00:01]} 36. Kg1 {[%emt 0:00:01]} Bb6 {[%emt 0:00:01]} 37. Rb3 {[%emt 0:00:01]} Rxb2+ {[%emt 0:00:01]} 38. Kh1 {[%emt 0:00:01]} Rc2 {[%emt 0:00:00]} 39. a4 {[%emt 0:00:01]} Bd4 {[%emt 0:00:01]} 40. Rb8+ {[%emt 0:00:01] .} Kg7 {[%emt 0:00:00]} 0-1

[Event "Test Tournament"]
[Site "Emanuel Lasker Arena"]
[Date "2024.04.09"]
[Round "2"]
[White "Zimtowitch"]
[Black "Bauernklopper"]
[Result "0-1"]
[WhiteElo "1896"]
[BlackElo "1620"]
[Annotator "NA RC"]
[PlyCount "70"]
[EventDate "2024.04.09"]
[EventType "swiss (blitz)"]
[TimeControl "60"]

1. d4 {[%emt 0:00:01]} d5 {[%emt 0:00:01]} 2. c4 {[%emt 0:00:01]} dxc4 {[%emt 0:00:01]} 3. Nf3 {[%emt 0:00:01]} Nf6 {[%emt 0:00:01]} 4. e3 {[%emt 0:00:01]} e6 {[%emt 0:00:01]} 5. Bxc4 {[%emt 0:00:01]} Nbd7 {[%emt 0:00:01]} 6. Nc3 {[%emt 0:00:01]} c6 {[%emt 0:00:01]} 7. e4 {[%emt 0:00:04]} Bb4 {[%emt 0:00:01]} 8. Qe2 {[%emt 0:00:01]} O-O {[%emt 0:00:01]} 9. O-O {[%emt 0:00:04]} c5 {[%emt 0:00:06]} 10. e5 {[%emt 0:00:03]} Bxc3 {[%emt 0:00:04]} 11. bxc3 {[%emt 0:00:01]} Nd5 {[%emt 0:00:03]} 12. Ng5 {[%emt 0:00:09]} cxd4 {[%emt 0:00:04]} 13. Nxh7 {[%emt 0:00:03]} Kxh7 {[%emt 0:00:01]} 14. Qh5+ {[%emt 0:00:03]} Kg8 {[%emt 0:00:01]} 15. cxd4 {[%emt 0:00:03]} b5 {[%emt 0:00:03]} 16. Bg5 {[%emt 0:00:03]} Qe8 {[%emt 0:00:03]} 17. Bxb5 {[%emt 0:00:02]} f6 {[%emt 0:00:03]} 18. Qxe8 {[%emt 0:00:01]} Rxe8 {[%emt 0:00:01]} 19. Bc6 {[%emt 0:00:02]} Ba6 {[%emt 0:00:03]} 20. Bxa8 {[%emt 0:00:01]} Bxf1 {[%emt 0:00:01]} 21. Bc6 {[%emt 0:00:02]} Re7 {[%emt 0:00:01]} 22. Bd2 {[%emt 0:00:02]} Be2 {[%emt 0:00:02]} 23. f4 {[%emt 0:00:02]} fxe5 {[%emt 0:00:01]} 24. dxe5 {[%emt 0:00:01]} Nc5 {[%emt 0:00:02]} 25. f5 {[%emt 0:00:01]} Nd3 {[%emt 0:00:01]} 26. Bg5 {[%emt 0:00:01]} Rc7 {[%emt 0:00:01]} 27. Bb5 {[%emt 0:00:01]} exf5 {[%emt 0:00:01]} 28. e6 {[%emt 0:00:01]} Kf8 {[%emt 0:00:01]} 29. h3 {[%emt 0:00:01]} Rc2 {[%emt 0:00:01]} 30. g4 {[%emt 0:00:01]} f4 {[%emt 0:00:01]} 31. Ba4 {[%emt 0:00:01]} Rd2 {[%emt 0:00:01]} 32. Bb5 {[%emt 0:00:01]} Bd1 {[%emt 0:00:01]} 33. a4 {[%emt 0:00:01]} Ne5 {[%emt 0:00:01]} 34. e7+ {[%emt 0:00:01]} Nxe7 {[%emt 0:00:00]} 35. Bxf4 {[%emt 0:00:01]} Nf3+ {[%emt 0:00:00] Time (Lag: Av=0.06s, max=0.3s) .} 0-1

[Event "Test Tournament"]
[Site "Emanuel Lasker Arena"]
[Date "2024.04.09"]
[Round "2"]
[White "Zimtowitch"]
[Black "CheckMaid"]
[Result "1-0"]
[WhiteElo "1896"]
[BlackElo "1645"]
[Annotator "NA RC"]
[PlyCount "29"]
[EventDate "2024.04.09"]
[EventType "swiss (blitz)"]
[TimeControl "60"]

1. c4 {[%emt 0:00:01]} Nf6 {[%emt 0:00:01]} 2. Nc3 {[%emt 0:00:01]} e5 {[%emt 0:00:01]} 3. Nf3 {[%emt 0:00:01]} Nc6 {[%emt 0:00:01]} 4. g3 {[%emt 0:00:01]} Bc5 {[%emt 0:00:01]} 5. Nxe5 {[%emt 0:00:01]} Nxe5 {[%emt 0:00:01]} 6. d4 {[%emt 0:00:01]} h5 {[%emt 0:00:05]} 7. Bg2 {[%emt 0:00:01]} Bd6 {[%emt 0:00:02]} 8. c5 {[%emt 0:00:04]} Nc4 {[%emt 0:00:05]} 9. b3 {[%emt 0:00:01]} g5 {[%emt 0:00:03]} 10. Bxg5 {[%emt 0:00:01]} Nb2 {[%emt 0:00:03]} 11. Qc2 {[%emt 0:00:04]} Rg8 {[%emt 0:00:03]} 12. Qf5 {[%emt 0:00:04]} Be7 {[%emt 0:00:03]} 13. O-O {[%emt 0:00:04]} Ng4 {[%emt 0:00:03]} 14. Bd5 {[%emt 0:00:03]} Bxg5 {[%emt 0:00:02]} 15. Qxf7# {[%emt 0:00:02] (Lag: Av=0.09s, max=0.6s)} 1-0

[Event "Test Tournament"]
[Site "Emanuel Lasker Arena"]
[Date "2024.04.09"]
[Round "2"]
[White "Zimtowitch"]
[Black "Mrs Florrick"]
[Result "1-0"]
[WhiteElo "1896"]
[BlackElo "1780"]
[Annotator "NA RC"]
[PlyCount "45"]
[EventDate "2024.04.09"]
[EventType "swiss (blitz)"]
[TimeControl "60"]

1. d4 {[%emt 0:00:01]} Nf6 {[%emt 0:00:02]} 2. c4 {[%emt 0:00:01]} e6 {[%emt 0:00:02]} 3. Nf3 {[%emt 0:00:01]} d5 {[%emt 0:00:01]} 4. Nc3 {[%emt 0:00:01]} Bb4 {[%emt 0:00:01]} 5. Bg5 {[%emt 0:00:01]} dxc4 {[%emt 0:00:01]} 6. e4 {[%emt 0:00:01]} c5 {[%emt 0:00:01]} 7. e5 {[%emt 0:00:01]} h6 {[%emt 0:00:01]} 8. exf6 {[%emt 0:00:01]} hxg5 {[%emt 0:00:01]} 9. fxg7 {[%emt 0:00:01]} Rg8 {[%emt 0:00:01]} 10. Qc2 {[%emt 0:00:01]} cxd4 {[%emt 0:00:02]} 11. Qh7 {[%emt 0:00:01]} Kd7 {[%emt 0:00:01]} 12. Nxd4 {[%emt 0:00:01]} g4 {[%emt 0:00:02]} 13. O-O-O {[%emt 0:00:01]} Qg5+ {[%emt 0:00:01]} 14. Kc2 {[%emt 0:00:04]} Bd6 {[%emt 0:00:03]} 15. Qxg8 {[%emt 0:00:01]} Qg6+ {[%emt 0:00:01]} 16. Kd2 {[%emt 0:00:03]} a6 {[%emt 0:00:05]} 17. Bxc4 {[%emt 0:00:01]} b5 {[%emt 0:00:03]} 18. Bxe6+ {[%emt 0:00:01]} fxe6 {[%emt 0:00:01]} 19. Qxe6+ {[%emt 0:00:01]} Qxe6 {[%emt 0:00:01]} 20. Nxe6 {[%emt 0:00:01]} Kc6 {[%emt 0:00:01]} 21. g8=Q {[%emt 0:00:03]} Bxe6 {[%emt 0:00:01]} 22. Qxe6 {[%emt 0:00:01]} g3 {[%emt 0:00:02]} 23. fxg3 {[%emt 0:00:03] Mrs Florrick resigns (Lag: Av=0.06s, max=0.3s)} 1-0

[Event "Test Tournament"]
[Site "Emanuel Lasker Arena"]
[Date "2024.04.09"]
[Round "2"]
[White "Hollis"]
[Black "Kalinda"]
[Result "1-0"]
[WhiteElo "1881"]
[BlackElo "2102"]
[Annotator "RC"]
[PlyCount "85"]
[EventDate "2024.04.09"]
[EventType "swiss (blitz)"]
[TimeControl "60"]

1. d4 {[%emt 0:00:01]} Nf6 {[%emt 0:00:01]} 2. c4 {[%emt 0:00:01]} c5 {[%emt 0:00:01]} 3. d5 {[%emt 0:00:01]} b5 {[%emt 0:00:01]} 4. cxb5 {[%emt 0:00:01]} a6 {[%emt 0:00:02]} 5. bxa6 {[%emt 0:00:01]} g6 {[%emt 0:00:01]} 6. Nc3 {[%emt 0:00:01]} Bxa6 {[%emt 0:00:01]} 7. g3 {[%emt 0:00:01]} d6 {[%emt 0:00:01]} 8. Bg2 {[%emt 0:00:02]} Qa5 {[%emt 0:00:01]} 9. Nf3 {[%emt 0:00:01]} Ne4 {[%emt 0:00:02]} 10. Rb1 {[%emt 0:00:01]} Nxc3 {[%emt 0:00:01]} 11. bxc3 {[%emt 0:00:01]} Qxc3+ {[%emt 0:00:00]} 12. Bd2 {[%emt 0:00:03]} Qa3 {[%emt 0:00:04]} 13. Qc2 {[%emt 0:00:04]} Nd7 {[%emt 0:00:03]} 14. Rb3 {[%emt 0:00:03]} Bb5 {[%emt 0:00:02]} 15. Rxa3 {[%emt 0:00:01]} Rxa3 {[%emt 0:00:01]} 16. Qb2 {[%emt 0:00:04]} Bc4 {[%emt 0:00:03]} 17. Qxa3 {[%emt 0:00:01]} Bxd5 {[%emt 0:00:01]} 18. O-O {[%emt 0:00:02]} Bg7 {[%emt 0:00:04]} 19. Qa7 {[%emt 0:00:02]} Bxf3 {[%emt 0:00:01]} 20. Bxf3 {[%emt 0:00:01]} O-O {[%emt 0:00:02]} 21. Qxd7 {[%emt 0:00:01]} c4 {[%emt 0:00:02]} 22. Qxe7 {[%emt 0:00:01]} c3 {[%emt 0:00:01]} 23. Bxc3 {[%emt 0:00:01]} Bxc3 {[%emt 0:00:01]} 24. Qxd6 {[%emt 0:00:01]} Rd8 {[%emt 0:00:02]} 25. Qxd8+ {[%emt 0:00:01]} Kg7 {[%emt 0:00:01]} 26. a4 {[%emt 0:00:02]} Kh6 {[%emt 0:00:01]} 27. Rc1 {[%emt 0:00:02]} Be5 {[%emt 0:00:01]} 28. h4 {[%emt 0:00:01]} Bb2 {[%emt 0:00:01]} 29. Qd2+ {[%emt 0:00:01]} Kg7 {[%emt 0:00:01]} 30. Qxb2+ {[%emt 0:00:01]} Kh6 {[%emt 0:00:01]} 31. Qg7+ {[%emt 0:00:01]} Kxg7 {[%emt 0:00:00]} 32. Be4 {[%emt 0:00:01]} g5 {[%emt 0:00:01]} 33. hxg5 {[%emt 0:00:01]} h5 {[%emt 0:00:01]} 34. Rc7 {[%emt 0:00:01]} Kf8 {[%emt 0:00:01]} 35. a5 {[%emt 0:00:00]} Kg8 {[%emt 0:00:01]} 36. a6 {[%emt 0:00:01]} Kg7 {[%emt 0:00:01]} 37. a7 {[%emt 0:00:01]} Kh8 {[%emt 0:00:01]} 38. a8=Q+ {[%emt 0:00:01]} Kg7 {[%emt 0:00:01]} 39. Qa1+ {[%emt 0:00:01]} Kf8 {[%emt 0:00:01]} 40. Qd4 {[%emt 0:00:01]} f6 {[%emt 0:00:01]} 41. Qxf6+ {[%emt 0:00:01]} Kg8 {[%emt 0:00:01]} 42. f4 {[%emt 0:00:01]} h4 {[%emt 0:00:00]} 43. Bd5# {[%emt 0:00:01] (Lag: Av=0.06s, max=0.3s)} 1-0

[Event "Test Tournament"]
[Site "Emanuel Lasker Arena"]
[Date "2024.04.09"]
[Round "2"]
[White "LiliBeth"]
[Black "Girlfriend Chess"]
[Result "1-0"]
[WhiteElo "1853"]
[BlackElo "1752"]
[Annotator "NA RC"]
[PlyCount "59"]
[EventDate "2024.04.09"]
[EventType "swiss (blitz)"]
[TimeControl "60"]

1. e4 {[%emt 0:00:02]} Nf6 {[%emt 0:00:01]} 2. e5 {[%emt 0:00:01]} Nd5 {[%emt 0:00:01]} 3. d4 {[%emt 0:00:01]} d6 {[%emt 0:00:01]} 4. Nf3 {[%emt 0:00:01]} dxe5 {[%emt 0:00:02]} 5. Nxe5 {[%emt 0:00:02]} c6 {[%emt 0:00:01]} 6. Be2 {[%emt 0:00:01]} Bf5 {[%emt 0:00:01]} 7. g4 {[%emt 0:00:01]} Be6 {[%emt 0:00:02]} 8. c4 {[%emt 0:00:01]} Qa5+ {[%emt 0:00:08]} 9. Bd2 {[%emt 0:00:04]} Nb4 {[%emt 0:00:01]} 10. a3 {[%emt 0:00:04]} N8a6 {[%emt 0:00:02]} 11. O-O {[%emt 0:00:04]} O-O-O {[%emt 0:00:03]} 12. f4 {[%emt 0:00:03]} f6 {[%emt 0:00:03]} 13. Nc3 {[%emt 0:00:04]} fxe5 {[%emt 0:00:01]} 14. axb4 {[%emt 0:00:01]} Qxb4 {[%emt 0:00:00]} 15. Nd5 {[%emt 0:00:02]} Qxb2 {[%emt 0:00:01]} 16. Bc3 {[%emt 0:00:01]} Bxg4 {[%emt 0:00:17]} 17. Bxg4+ {[%emt 0:00:01]} e6 {[%emt 0:00:01]} 18. Bxe6+ {[%emt 0:00:01]} Kb8 {[%emt 0:00:01]} 19. Bxb2 {[%emt 0:00:01]} cxd5 {[%emt 0:00:01]} 20. fxe5 {[%emt 0:00:01]} Nc7 {[%emt 0:00:01]} 21. Qg4 {[%emt 0:00:02]} Nxe6 {[%emt 0:00:01]} 22. cxd5 {[%emt 0:00:01]} Rxd5 {[%emt 0:00:01]} 23. Qxe6 {[%emt 0:00:01]} Rd8 {[%emt 0:00:01]} 24. Rf7 {[%emt 0:00:03]} Bb4 {[%emt 0:00:02]} 25. Rxg7 {[%emt 0:00:04]} a5 {[%emt 0:00:02]} 26. h4 {[%emt 0:00:02]} h5 {[%emt 0:00:01]} 27. Qb6 {[%emt 0:00:02]} Be7 {[%emt 0:00:01]} 28. Rxe7 {[%emt 0:00:01]} Rdg8+ {[%emt 0:00:01]} 29. Kh2 {[%emt 0:00:01]} Rg1 {[%emt 0:00:01]} 30. Qxb7# {[%emt 0:00:01] (Lag: Av=0.09s, max=0.6s)} 1-0

[Event "Test Tournament"]
[Site "Emanuel Lasker Arena"]
[Date "2024.04.09"]
[Round "2"]
[White "Botwinzig"]
[Black "Toby Ziegler"]
[Result "0-1"]
[WhiteElo "1810"]
[BlackElo "2064"]
[Annotator "RC"]
[PlyCount "42"]
[EventDate "2024.04.09"]
[EventType "swiss (blitz)"]
[TimeControl "60"]

1. d4 {[%emt 0:00:01]} Nf6 {[%emt 0:00:01]} 2. c4 {[%emt 0:00:01]} e6 {[%emt 0:00:01]} 3. Nc3 {[%emt 0:00:01]} Bb4 {[%emt 0:00:01]} 4. Qc2 {[%emt 0:00:01]} O-O {[%emt 0:00:01]} 5. a3 {[%emt 0:00:01]} Bxc3+ {[%emt 0:00:01]} 6. Qxc3 {[%emt 0:00:02]} d6 {[%emt 0:00:01]} 7. f3 {[%emt 0:00:01]} c5 {[%emt 0:00:01]} 8. dxc5 {[%emt 0:00:06]} dxc5 {[%emt 0:00:01]} 9. Bf4 {[%emt 0:00:01]} Nc6 {[%emt 0:00:07]} 10. Rd1 {[%emt 0:00:03]} Qb6 {[%emt 0:00:01]} 11. e4 {[%emt 0:00:02]} e5 {[%emt 0:00:04]} 12. Bxe5 {[%emt 0:00:01]} Nxe5 {[%emt 0:00:01]} 13. Qxe5 {[%emt 0:00:01]} Qb3 {[%emt 0:00:04]} 14. h4 {[%emt 0:00:08]} h5 {[%emt 0:00:03]} 15. Bd3 {[%emt 0:00:03]} Re8 {[%emt 0:00:07]} 16. Bc2 {[%emt 0:00:09]} Qe3+ {[%emt 0:00:01]} 17. Ne2 {[%emt 0:00:01]} Rxe5 {[%emt 0:00:01]} 18. Rd3 {[%emt 0:00:01]} Qh6 {[%emt 0:00:02]} 19. O-O {[%emt 0:00:01]} Bh3 {[%emt 0:00:02]} 20. gxh3 {[%emt 0:00:01]} b5 {[%emt 0:00:02]} 21. cxb5 {[%emt 0:00:01]} c4 {[%emt 0:00:02] Time (Lag: Av=0.05s, max=0.1s) .} 0-1

[Event "Test Tournament"]
[Site "Emanuel Lasker Arena"]
[Date "2024.04.09"]
[Round "2"]
[White "Lord Grantham"]
[Black "PinPointPro"]
[Result "1-0"]
[WhiteElo "1766"]
[BlackElo "1984"]
[Annotator "RC"]
[PlyCount "47"]
[EventDate "2024.04.09"]
[EventType "swiss (blitz)"]
[TimeControl "60"]

1. d4 {[%emt 0:00:01]} Nf6 {[%emt 0:00:01]} 2. c4 {[%emt 0:00:01]} e6 {[%emt 0:00:01]} 3. Nf3 {[%emt 0:00:01]} d5 {[%emt 0:00:01]} 4. g3 {[%emt 0:00:01]} Bb4+ {[%emt 0:00:01]} 5. Bd2 {[%emt 0:00:01]} Be7 {[%emt 0:00:01]} 6. Bg2 {[%emt 0:00:01]} c6 {[%emt 0:00:05]} 7. Qc2 {[%emt 0:00:01]} O-O {[%emt 0:00:01]} 8. O-O {[%emt 0:00:04]} Nbd7 {[%emt 0:00:01]} 9. Rd1 {[%emt 0:00:01]} b6 {[%emt 0:00:01]} 10. b3 {[%emt 0:00:04]} Ba6 {[%emt 0:00:01]} 11. Bf4 {[%emt 0:00:01]} Rc8 {[%emt 0:00:01]} 12. Nbd2 {[%emt 0:00:03]} Nh5 {[%emt 0:00:01]} 13. e3 {[%emt 0:00:03]} c5 {[%emt 0:00:01]} 14. Qb1 {[%emt 0:00:03]} dxc4 {[%emt 0:00:01]} 15. Nxc4 {[%emt 0:00:01]} Nxf4 {[%emt 0:00:01]} 16. exf4 {[%emt 0:00:01]} Bb7 {[%emt 0:00:03]} 17. Ng5 {[%emt 0:00:03]} Nf6 {[%emt 0:00:01]} 18. Bxb7 {[%emt 0:00:00]} cxd4 {[%emt 0:00:01]} 19. Bxc8 {[%emt 0:00:01]} Qxc8 {[%emt 0:00:01]} 20. Rxd4 {[%emt 0:00:03]} b5 {[%emt 0:00:03]} 21. Ne5 {[%emt 0:00:03]} Bc5 {[%emt 0:00:04]} 22. Nd7 {[%emt 0:00:02]} Kh8 {[%emt 0:00:02]} 23. Nxf6 {[%emt 0:00:01]} Bxd4 {[%emt 0:00:02]} 24. Qxh7# {[%emt 0:00:02] (Lag: Av=0.05s, max=0.2s)} 1-0